fUSD/lending_fUSD_20250112
["ID","MTS","AMOUNT","RATE_DAILY","PERIOD"]
[348698461,1736723465637,-879.51,0.00012189,2]
[348698462,1736723465646,-500.0,0.00012189,2]
[348698463,1736723465656,-500.0,0.00012189,2]
[348698464,1736723465665,-500.0,0.00012189,2]
[348698465,1736723465675,-500.0,0.00012189,2]
[348698466,1736723465683,-511.24,0.00012189,2]
[348698467,1736723465692,-500.0,0.00012189,2]
[348698468,1736723465702,-500.0,0.00012189,2]
[348698469,1736723465711,-500.0,0.00012189,2]
[348698470,1736723465721,-500.0,0.00012189,2]
[348698471,1736723465730,-500.0,0.00012189,2]
[348698472,1736723465740,-500.0,0.00012189,2]
[348698473,1736723465750,-500.0,0.00012189,2]
[348698474,1736723465760,-500.0,0.00012189,2]
[348698475,1736723465770,-500.0,0.00012189,2]
[348698476,1736723465781,-500.0,0.00012189,2]
[348698477,1736723465791,-500.0,0.00012189,2]
[348698478,1736723465803,-545.84,0.00012189,2]
[348698479,1736723465813,-1161.39,0.00012189,2]
[348698480,1736723465823,-500.0,0.00012189,2]
[348698481,1736723465832,-500.0,0.00012189,2]
[348698482,1736723465842,-934.8,0.00012189,2]
[348698483,1736723465851,-500.0,0.00012189,2]
[348698484,1736723465861,-2739.92,0.00012189,2]
[348698485,1736723465871,-500.0,0.00012189,2]
[348698486,1736723465880,-1112.93,0.00012189,2]
[348698487,1736723465889,-500.0,0.00012189,2]
[348698488,1736723465899,-500.0,0.00012189,2]
[348698489,1736723465908,-1961.1,0.00012189,2]
[348698490,1736723465918,-539.12,0.00012189,2]
[348698491,1736723465928,-617.93,0.00012189,2]
[348698492,1736723465940,-500.0,0.00012189,2]
[348698493,1736723465949,-516.61,0.00012189,2]
[348698494,1736723465959,-563.6,0.00012189,2]
[348698495,1736723465969,-541.77,0.00012189,2]
[348698496,1736723465978,-500.0,0.00012189,2]
[348698497,1736723465988,-1408.99,0.00012189,2]
[348698498,1736723465997,-881.31,0.00012189,2]
[348698499,1736723466007,-500.0,0.00012189,2]
[348698500,1736723466017,-500.0,0.00012189,2]
[348698501,1736723466026,-500.0,0.00012189,2]
[348698502,1736723466036,-500.0,0.00012189,2]
[348698503,1736723466046,-500.0,0.00012189,2]
[348698504,1736723466060,-1597.13,0.00012189,2]
[348698505,1736723466069,-500.0,0.00012189,2]
[348698506,1736723466079,-336.573048,0.00012189,2]
[348698507,1736723466089,-1968.91,0.00012189,2]
[348698508,1736723466099,-538.98525175,0.00012189,2]
[348698509,1736723466108,-500.0,0.00012189,2]
[348698510,1736723466117,-558.07,0.00012189,2]
[348698511,1736723466127,-1555.09,0.00012189,2]
[348698512,1736723466136,-500.0,0.00012189,2]
[348698513,1736723466146,-401.121639,0.00012189,2]
[348698514,1736723466155,-569.09213755,0.00012189,2]
[348698515,1736723466165,-838.24,0.00012189,2]
[348698516,1736723466175,-500.0,0.00012189,2]
[348698517,1736723466184,-500.0,0.00012189,2]
[348698518,1736723466194,-500.0,0.00012189,2]
[348698519,1736723466203,-622.96,0.00012189,2]
[348698520,1736723466212,-500.0,0.00012189,2]
[348698521,1736723466222,-500.0,0.00012189,2]
[348698522,1736723466231,-500.0,0.00012189,2]
[348698523,1736723466241,-564.97,0.00012189,2]
[348698524,1736723466250,-500.0,0.00012189,2]
[348698525,1736723466261,-500.0,0.00012189,2]
[348698526,1736723466274,-500.0,0.00012189,2]
[348698527,1736723466284,-500.0,0.00012189,2]
[348698528,1736723466294,-500.0,0.00012189,2]
[348698529,1736723466307,-1949.57,0.00012189,2]
[348698530,1736723466316,-762.22,0.00012189,2]
[348698531,1736723466325,-500.0,0.0001219,2]
[348698532,1736723466335,-500.0,0.0001219,2]
[348698533,1736723466346,-425.04870059,0.0001219,2]
[348698534,1736723466356,-703.96,0.0001219,2]
[348698535,1736723466365,-500.0,0.0001219,2]
[348698536,1736723466374,-500.0,0.0001219,2]
[348698537,1736723466383,-1378.21,0.0001219,2]
[348698538,1736723466392,-500.0,0.0001219,2]
[348698539,1736723466401,-500.0,0.0001219,2]
[348698540,1736723466411,-500.0,0.0001219,2]
[348698541,1736723466420,-500.0,0.0001219,2]
[348698542,1736723466430,-2136.75,0.0001219,2]
[348698543,1736723466440,-500.0,0.0001219,2]
[348698544,1736723466449,-500.0,0.0001219,2]
[348698545,1736723466461,-2251.52,0.0001219,2]
[348698546,1736723466473,-500.0,0.0001219,2]
[348698547,1736723466482,-500.0,0.0001219,2]
[348698548,1736723466492,-923.65,0.0001219,2]
[348698549,1736723466501,-505.28,0.0001219,2]
[348698550,1736723466511,-1889.32,0.0001219,2]
[348698551,1736723466520,-500.0,0.0001219,2]
[348698552,1736723466530,-500.0,0.0001219,2]
[348698553,1736723466539,-500.0,0.0001219,2]
[348698554,1736723466551,-500.0,0.0001219,2]
[348698555,1736723466560,-500.34,0.0001219,2]
[348698556,1736723466569,-519.67,0.0001219,2]
[348698557,1736723466579,-500.0,0.0001219,2]
[348698558,1736723466590,-500.0,0.0001219,2]
[348698559,1736723466599,-592.28,0.0001219,2]
[348698560,1736723466609,-500.0,0.0001219,2]
[348698561,1736723466618,-500.0,0.0001219,2]
[348698562,1736723466628,-898.78,0.0001219,2]
[348698563,1736723466639,-766.07,0.0001219,2]
[348698564,1736723466649,-561.49,0.0001219,2]
[348698565,1736723466658,-2194.42,0.0001219,2]
[348698566,1736723466668,-901.07,0.0001219,2]
[348698567,1736723466678,-952.21,0.0001219,2]
[348698568,1736723466687,-1139.11,0.0001219,2]
[348698569,1736723466697,-1451.1,0.0001219,2]
[348698570,1736723466707,-896.25,0.0001219,2]
[348698571,1736723466718,-500.0,0.00012191,2]
[348698572,1736723466727,-875.87,0.00012191,2]
[348698573,1736723466737,-681.14,0.00012191,2]
[348698574,1736723466746,-946.98,0.00012191,2]
[348698575,1736723466756,-775.55,0.00012191,2]
[348698576,1736723466766,-500.0,0.00012191,2]
[348698577,1736723466776,-854.16,0.00012191,2]
[348698578,1736723466786,-1050.58,0.00012191,2]
[348698579,1736723466795,-745.7,0.00012191,2]
[348698580,1736723466805,-5000.0,0.000122,2]
[348698581,1736723466815,-131514.2265045,0.000122,2]
[348698582,1736723466824,-50025.63610488,0.000122,3]
[348698583,1736723466833,-2000.0,0.000122,2]
[348698584,1736723466844,-2000.0,0.000122,2]
[348698585,1736723466853,-2000.0,0.000122,2]
[348698586,1736723466863,-2000.0,0.000122,2]
[348698587,1736723466872,-368.66217887,0.000122,2]
[348698588,1736723466883,-9427.20340862,0.000122,2]
[348698589,1736723466892,-173.89661422,0.000122,2]
[348698590,1736723466902,-214.45981686,0.000122,2]
[348698591,1736723466912,-299.04579897,0.000122,2]
[348698592,1736723466921,-180119.72387394,0.00012228,2]
[348698593,1736723466930,-2066.0,0.00012237,2]
[348698594,1736723466940,-200.1811951,0.00012239,2]
[348698595,1736723466950,-108491.81178119,0.00012254,3]
[348698596,1736723466960,-14135.97170446,0.00012254,3]
[348698597,1736723466969,-39515.83523346,0.00012263,2]
[348698598,1736723466978,-189771.42716091,0.00012265,2]
[348698599,1736723466987,-5000.0,0.0001227,2]
[348698600,1736723466996,-153.507976,0.0001227,3]
[348698601,1736723467006,-20173.0,0.00012274,2]
[348698602,1736723467015,-10750.98355239,0.0001228,3]
[348698603,1736723467025,-7106.18484369,0.0001229,2]
[348698604,1736723467034,-15262.6101472,0.00012292,2]
[348698605,1736723467044,-15353.7743373,0.00012292,2]
[348698606,1736723467054,-15444.9385274,0.00012292,2]
[348698607,1736723467064,-15536.1027175,0.00012292,2]
[348698608,1736723467073,-15627.2669075,0.00012292,2]
[348698609,1736723467083,-5613.0037133,0.00012292,2]
[348698610,1736723467092,-6989.4595125,0.00012292,2]
[348698611,1736723467102,-8365.9153118,0.00012292,2]
[348698612,1736723467111,-9742.371111,0.00012292,2]
[348698613,1736723467120,-11118.8269103,0.00012292,2]
[348698614,1736723467129,-1000.0,0.00012294,2]
[348698615,1736723467138,-113408.94838583,0.00012296,2]
[348698616,1736723467148,-72309.88321801,0.00012296,2]
[348698617,1736723467157,-500.0,0.00012298,17]
[348698618,1736723467166,-2000.0,0.00012299,2]
[348698619,1736723467175,-2000.0,0.00012299,2]
[348698620,1736723467185,-2000.0,0.00012299,2]
[348698621,1736723467194,-11168.12694988,0.00012299,2]
[348698622,1736723467203,-500.0,0.00012299,16]
[348698623,1736723467212,-2000.0,0.00012299,2]
[348698624,1736723467222,-2000.0,0.00012299,2]
[348698625,1736723467231,-2007.2466,0.00012299,2]
[348698626,1736723467240,-214420.40686848,0.00012299,4]
[348698627,1736723467496,-35373.02205465,0.00012299,4]
[348698628,1736723467508,-739.58062651,0.00012299,4]
[348698629,1736723467519,-1018.0,0.00012299,4]
[348698630,1736723467543,-42865.29142859,0.00012299,4]
[348698631,1736723467973,-312.47879942,9.996e-05,2]
[348698632,1736723467991,-187.52120058,9.996e-05,2]
[348698633,1736723468000,-312.47879942,9.997e-05,2]
[348698634,1736723468410,-187.52120058,9.997e-05,2]
[348698635,1736723468419,-500.0,9.997e-05,2]
[348698636,1736723468429,-522.84271186,9.997e-05,2]
[348698637,1736723468439,-500.0,9.997e-05,2]
[348698638,1736723468448,-500.0,9.997e-05,2]
[348698639,1736723468457,-792.56370491,9.998e-05,2]
[348698640,1736723468468,-21.98629509,9.998e-05,2]
[348698641,1736723468477,-723.28,9.999e-05,2]
[348698642,1736723468487,-691.56,9.999e-05,2]
[348698643,1736723468496,-792.47531651,0.0001,2]
[348698644,1736723468506,-814.55,0.00010272,2]
[348698645,1736723468515,-723.28,0.00010273,2]
[348698646,1736723468525,-691.56,0.00010273,2]
[348698647,1736723468534,-814.55,0.00010546,2]
[348698648,1736723468544,-723.28,0.00010547,2]
[348698649,1736723468553,-691.56,0.00010547,2]
[348698650,1736723468563,-500.0,0.00010819,2]
[348698651,1736723468573,-1058.94,0.00010819,2]
[348698652,1736723468582,-1582.85,0.0001082,2]
[348698653,1736723468591,-814.55,0.0001082,2]
[348698654,1736723468600,-723.28,0.00010821,2]
[348698655,1736723468609,-691.56,0.00010821,2]
[348698656,1736723468619,-500.0,0.00011093,2]
[348698657,1736723468628,-1058.94,0.00011093,2]
[348698658,1736723468637,-1582.85,0.00011094,2]
[348698659,1736723468648,-814.55,0.00011094,2]
[348698660,1736723468658,-500.0,0.00011367,2]
[348698661,1736723468668,-1058.94,0.00011367,2]
[348698662,1736723468678,-1582.85,0.00011368,2]
[348698663,1736723468688,-500.0,0.00011641,2]
[348698664,1736723468698,-1058.94,0.00011641,2]
[348698665,1736723468708,-1582.85,0.00011642,2]
[348698666,1736723468718,-500.0,0.00011915,2]
[348698667,1736723468729,-1058.94,0.00011915,2]
[348698668,1736723468740,-1582.85,0.00011916,2]
[348698669,1736723468752,-500.0,0.00012189,2]
[348698670,1736723468762,-920174.86770511,0.00012299,4]
[348698671,1736723468775,-135605.70883151,0.00012299,4]
[348698672,1736723468808,-691.56,0.00011095,2]
[348698673,1736723468818,-723.28,0.00011095,2]
[348698674,1736723468828,-1058.94,0.00012189,2]
[348698675,1736723468838,-2522.20238867,0.00012299,4]
[348698676,1736723468851,-485.305,0.00012299,4]
[348698677,1736723468866,-21409.91821442,0.00012299,4]
[348698678,1736723468909,-211523.66125748,0.00012299,4]
[348698679,1736723469215,-500.8232297,9.997e-05,2]
[348698680,1736723469225,-177.31816398,0.00011368,2]
[348698681,1736723469236,-637.23183602,0.00011368,2]
[348698682,1736723469245,-512.12563898,0.00011369,2]
[348698683,1736723469257,-211.15436102,0.00011369,2]
[348698684,1736723469271,-691.56,0.00011369,2]
[348698685,1736723469280,-814.55,0.00011642,2]
[348698686,1736723469289,-723.28,0.00011643,2]
[348698687,1736723469299,-691.56,0.00011643,2]
[348698688,1736723469309,-814.55,0.00011916,2]
[348698689,1736723469318,-723.28,0.00011917,2]
[348698690,1736723469327,-691.56,0.00011917,2]
[348698691,1736723469338,-1582.85,0.0001219,2]
[348698692,1736723469347,-12997.67336898,0.00012299,4]
[348698693,1736723469358,-551.87349023,0.00012299,4]
[348698694,1736723469369,-2639.56944443,0.00012299,4]
[348698695,1736723469380,-46091.27029651,0.00012299,4]
[348698696,1736723469392,-322.8916,0.00012299,4]
[348698697,1736723469403,-500.0,0.00012299,4]
[348698698,1736723469433,-300.0,0.0001105,2]
[348698699,1736723469446,-492.4753165,0.0001105,2]
[348698700,1736723469456,-158.29218114,0.00012299,4]
[348698701,1736723469468,-325.91,0.00012299,4]
[348698702,1736723469479,-1253.16529958,0.00012299,4]
[348698703,1736723469490,-492.405,0.00012299,4]
[348698704,1736723469504,-6749.082116,0.00012299,4]
[348698705,1736723469515,-3499.739717,0.00012299,4]
[348698706,1736723469527,-679.40528476,0.00012299,4]
[348698709,1736723928347,1832.24052274,0.00023,120]
[348698710,1736724019367,675.86,8.219e-05,2]
[348698711,1736724106161,380.0,0.00023,120]
[348698725,1736724473822,1597.79,0.00023,120]
[348698726,1736724560134,-2018.8132085,8.976e-05,2]
[348698727,1736724566861,170.65,7.167e-05,2]
[348698728,1736724592149,477.688095,8.931e-05,2]
[348698730,1736724631964,-362.94287197,8.976e-05,2]
[348698732,1736724632001,-506.65964685,8.976e-05,2]
[348698734,1736724632130,-17782.28427268,8.976e-05,2]
[348698735,1736724632139,-1189.31572732,8.981e-05,2]
[348698736,1736724632151,-810.68427268,8.981e-05,2]
[348698737,1736724632160,-311.39,9.013e-05,2]
[348698738,1736724632171,-1135.98698653,9.017e-05,2]
[348698739,1736724632180,-161.49,9.024e-05,2]
[348698740,1736724632189,-96.39164257,9.063e-05,2]
[348698741,1736724632355,-177.25835743,9.063e-05,2]
[348698742,1736724632364,-1000.0,9.111e-05,2]
[348698743,1736724632373,-250.0,9.161e-05,2]
[348698744,1736724632382,-200.0,9.167e-05,2]
[348698745,1736724632391,-250.0,9.225e-05,2]
[348698746,1736724632401,-600.0,9.5e-05,3]
[348698747,1736724632411,-1200.0,9.6e-05,3]
[348698748,1736724632420,-1800.0,9.7e-05,3]
[348698750,1736724632429,-2500.0,9.8e-05,3]
[348698751,1736724632440,-6712.38640648,9.895e-05,2]
[348698752,1736724632451,-81.26569352,9.895e-05,2]
[348698753,1736724632461,-1172.2483,9.898e-05,2]
[348698754,1736724632469,-1287.32719176,9.9e-05,3]
[348698755,1736724632481,-1782.57,9.9e-05,3]
[348698756,1736724632494,-30.10280824,9.9e-05,3]
[348698757,1736724632503,-150.0,9.994e-05,2]
[348698758,1736724632513,-500.0,9.995e-05,2]
[348698759,1736724632522,-500.0,9.995e-05,2]
[348698760,1736724632531,-500.0,9.995e-05,2]
[348698761,1736724632541,-500.0,9.995e-05,2]
[348698762,1736724632550,-458.76340571,9.995e-05,2]
[348698797,1736724637932,-41.23659429,9.995e-05,2]
[348698800,1736724637942,-500.0,9.995e-05,2]
[348698802,1736724637952,-500.0,9.995e-05,2]
[348698804,1736724637961,-285.31,9.995e-05,2]
[348698806,1736724637970,-500.0,9.995e-05,2]
[348698807,1736724637979,-33.49692697,9.995e-05,2]
[348698808,1736724638071,-466.50307303,9.995e-05,2]
[348698809,1736724638080,-500.0,9.995e-05,2]
[348698810,1736724638090,-500.0,9.995e-05,2]
[348698811,1736724638099,-500.0,9.995e-05,2]
[348698812,1736724638108,-500.0,9.995e-05,2]
[348698813,1736724638117,-500.0,9.995e-05,2]
[348698814,1736724638126,-500.0,9.995e-05,2]
[348698815,1736724638135,-500.0,9.995e-05,2]
[348698816,1736724638144,-500.0,9.995e-05,2]
[348698817,1736724638153,-500.0,9.995e-05,2]
[348698818,1736724638162,-500.0,9.995e-05,2]
[348698819,1736724638171,-517.03,9.996e-05,2]
[348698820,1736724638181,-500.0,9.996e-05,2]
[348698821,1736724638191,-500.0,9.996e-05,2]
[348698822,1736724638199,-583.92,9.996e-05,2]
[348698823,1736724638208,-631.32,9.996e-05,2]
[348698824,1736724638217,-500.0,9.997e-05,2]
[348698825,1736724638226,-500.79829136,9.997e-05,2]
[348698826,1736724638235,-501.00711188,9.997e-05,2]
[348698827,1736724638244,-500.0,9.997e-05,2]
[348698828,1736724638253,-500.0,9.997e-05,2]
[348698829,1736724638263,-580.53368935,9.997e-05,2]
[348698830,1736724638272,-503.43702755,9.997e-05,2]
[348698831,1736724638281,-550.4,9.997e-05,2]
[348698832,1736724638290,-526.15,9.997e-05,2]
[348698833,1736724638299,-661.84,9.997e-05,2]
[348698834,1736724638308,-500.0,9.997e-05,2]
[348698835,1736724638317,-861.38,9.997e-05,2]
[348698836,1736724638327,-695.06,9.997e-05,2]
[348698837,1736724638336,-1335.47,9.997e-05,2]
[348698838,1736724638345,-1407.2,9.997e-05,2]
[348698839,1736724638355,-577.28,9.997e-05,2]
[348698840,1736724638364,-1259.54,9.997e-05,2]
[348698841,1736724638373,-599.18,9.997e-05,2]
[348698842,1736724638382,-510.71,9.997e-05,2]
[348698843,1736724638391,-500.0,9.997e-05,2]
[348698844,1736724638401,-600.71,9.997e-05,2]
[348698845,1736724638410,-759.4,9.997e-05,2]
[348698846,1736724638419,-597.5,9.997e-05,2]
[348698847,1736724638427,-1462.94,9.997e-05,2]
[348698848,1736724638436,-634.81,9.997e-05,2]
[348698849,1736724638446,-967.4,9.997e-05,2]
[348698850,1736724638455,-863.64,9.997e-05,2]
[348698852,1736724638464,-543.03,9.997e-05,2]
[348698854,1736724638473,-260.15725258,9.997e-05,2]
[348698859,1736724638518,-544.25274742,9.997e-05,2]
[348698861,1736724638527,-597.7,9.997e-05,2]
[348698863,1736724638536,-569.44,9.997e-05,2]
[348698865,1736724638545,-500.0,9.997e-05,2]
[348698867,1736724638554,-981.12,9.997e-05,2]
[348698869,1736724638563,-626.22,9.997e-05,2]
[348698871,1736724638572,-500.0,9.997e-05,2]
[348698873,1736724638582,-500.0,9.997e-05,2]
[348698875,1736724638591,-500.0,9.997e-05,2]
[348698877,1736724638604,-500.0,9.997e-05,2]
[348698879,1736724638613,-500.0,9.997e-05,2]
[348698881,1736724638622,-500.0,9.997e-05,2]
[348698892,1736724638838,-728.19,9.997e-05,2]
[348698893,1736724638848,-500.0,9.997e-05,2]
[348698894,1736724638857,-447.88537253,9.997e-05,2]
[348698895,1736724638866,-500.0,9.997e-05,2]
[348698896,1736724638875,-253.85,9.997e-05,2]
[348698897,1736724638884,-989.28,9.997e-05,2]
[348698898,1736724638893,-223.90244058,9.997e-05,2]
[348698899,1736724638904,-276.09755942,9.997e-05,2]
[348698900,1736724638913,-583.92,9.997e-05,2]
[348698901,1736724638923,-846.72,9.997e-05,2]
[348698902,1736724638932,-774.26,9.997e-05,2]
[348698903,1736724638943,-500.0,9.997e-05,2]
[348698904,1736724638952,-500.0,9.997e-05,2]
[348698905,1736724638961,-500.0,9.997e-05,2]
[348698906,1736724638971,-500.0,9.997e-05,2]
[348698907,1736724638980,-500.0,9.997e-05,2]
[348698908,1736724638991,-458.81155341,9.997e-05,2]
[348698909,1736724639001,-500.0,9.997e-05,2]
[348698910,1736724639010,-500.0,9.997e-05,2]
[348698911,1736724639020,-500.0,9.997e-05,2]
[348698912,1736724639029,-623.2,9.997e-05,2]
[348698913,1736724639039,-500.0,9.997e-05,2]
[348698914,1736724639048,-500.0,9.997e-05,2]
[348698915,1736724639057,-500.0,9.997e-05,2]
[348698916,1736724639067,-405.74088467,9.997e-05,2]
[348698917,1736724639082,-94.25911533,9.997e-05,2]
[348698918,1736724639092,-500.0,9.998e-05,2]
[348698919,1736724639102,-700.39,9.998e-05,2]
[348698920,1736724639112,-1064.59,9.998e-05,2]
[348698921,1736724639121,-1016.17,9.998e-05,2]
[348698922,1736724639130,-1433.2,9.998e-05,2]
[348698923,1736724639139,-3158.04,9.998e-05,2]
[348698924,1736724639148,-675.71,9.998e-05,2]
[348698925,1736724639157,-500.0,9.998e-05,2]
[348698926,1736724639167,-15697.91298219,9.998e-05,2]
[348698928,1736724640026,-491.2881889,9.998e-05,2]
[348698929,1736724640299,-1002.39917897,9.998e-05,2]
[348698930,1736724640310,-2124.94160717,9.998e-05,2]
[348698931,1736724640323,-62732.01499977,9.998e-05,2]
[348698932,1736724640334,-4601.92155078,9.998e-05,2]
[348698933,1736724640345,-280.9474902,9.998e-05,2]
[348698934,1736724640357,-2546.684949,9.998e-05,2]
[348698935,1736724640368,-4752.07972932,9.998e-05,2]
[348698936,1736724640379,-451.5099872,9.998e-05,2]
[348698937,1736724640410,-1655.59,9.998e-05,2]
[348698952,1736724643005,-500.0,9.997e-05,2]
[348698956,1736724643015,-55479.90415979,9.998e-05,2]
[348698962,1736724643145,-282.07,9.998e-05,2]
[348698963,1736724643157,-463.59,9.998e-05,2]
[348698964,1736724643169,-6224.08578409,9.998e-05,2]
[348698965,1736724643182,-74552.24274399,9.998e-05,2]
[348698966,1736724643222,-572.4865023,9.998e-05,2]
[348698967,1736724643232,-5260.06518167,9.998e-05,2]
[348698968,1736724643282,-445.10019242,9.997e-05,2]
[348698969,1736724643295,-1381.50980758,9.997e-05,2]
[348698970,1736724643305,-487.02303039,9.998e-05,2]
[348698971,1736724643318,-65704.63422015,9.998e-05,2]
[348698972,1736724643330,-500.0,9.998e-05,2]
[348698973,1736724643341,-1209.57,9.998e-05,2]
[348698974,1736724643351,-500.0,9.998e-05,2]
[348698975,1736724643360,-500.0,9.998e-05,2]
[348698976,1736724643372,-694.26,9.998e-05,2]
[348698977,1736724643382,-988.56,9.998e-05,2]
[348698979,1736724643391,-787.17,9.998e-05,2]
[348698981,1736724643400,-500.0,9.998e-05,2]
[348698982,1736724643411,-1000.0,9.998e-05,2]
[348698984,1736724643420,-683.32,9.998e-05,2]
[348698985,1736724643429,-500.0,9.998e-05,2]
[348698987,1736724643439,-1250.98,9.998e-05,2]
[348698989,1736724643448,-164831.50578485,9.999e-05,2]
[348698991,1736724643461,-1836.16629,9.999e-05,2]
[348698993,1736724643471,-679.30499915,9.999e-05,2]
[348698997,1736724643497,-1938.45550524,9.999e-05,2]
[348699040,1736724645964,-500.0,9.997e-05,2]
[348699041,1736724645976,-4007.18095193,9.999e-05,2]
[348699042,1736724645997,-3465.46992,9.999e-05,2]
[348699043,1736724646032,-3982.02257201,9.999e-05,2]
[348699044,1736724646164,-29599.9998,9.999e-05,2]
[348699045,1736724646175,-37586.59651864,9.999e-05,2]
[348699046,1736724646184,-500.0,0.0001,2]
[348699047,1736724646194,-188.38,0.0001,2]
[348699048,1736724646203,-30698.22348236,0.0001,2]
[348699049,1736724646276,-950.75,0.0001,2]
[348699050,1736724646300,-34902.78590849,0.0001,2]
[348699051,1736724875611,292.03,7.397e-05,2]
[348699052,1736724895906,671.97,8.219e-05,2]
[348699056,1736725531180,170.64,7.157e-05,2]
[348699057,1736725681330,970.02,8.919e-05,2]
[348699058,1736725713982,250.0,8.872e-05,2]
[348699061,1736725773708,250.0,8.931e-05,2]
[348699069,1736725832153,-404.06,9.007e-05,2]
[348699070,1736725832164,-200.0,9.04e-05,2]
[348699071,1736725832173,-156.11927755,9.04e-05,2]
[348699072,1736725832182,-250.0,9.051e-05,2]
[348699073,1736725832191,-1500.0,9.08e-05,2]
[348699074,1736725832201,-3830.76913052,9.096e-05,2]
[348699075,1736725832211,-161.88,9.096e-05,2]
[348699076,1736725832221,-164.01,9.162e-05,2]
[348699077,1736725832230,-171.56,9.174e-05,2]
[348699078,1736725832241,-1000.0,9.224e-05,2]
[348699079,1736725832251,-268.72,9.236e-05,2]
[348699080,1736725832263,-186.03,9.554e-05,2]
[348699081,1736725832273,-500.0,9.777e-05,2]
[348699082,1736725832282,-250.8032,9.88e-05,2]
[348699083,1736725832292,-898.2585,9.88e-05,2]
[348699084,1736725832301,-1239.233,9.88e-05,2]
[348699085,1736725832311,-3256.8256,9.88e-05,2]
[348699086,1736725832321,-866.5748,9.896e-05,2]
[348699087,1736725832331,-7357.4681,9.897e-05,2]
[348699088,1736725832340,-150.0,9.899e-05,2]
[348699089,1736725832349,-5000.0,9.9e-05,2]
[348699090,1736725832358,-20112.0,9.9e-05,2]
[348699091,1736725832368,-3546.154,9.909e-05,2]
[348699092,1736725832378,-164.26,9.909e-05,2]
[348699093,1736725832388,-676.05114348,9.909e-05,2]
[348699094,1736725832398,-83.72168442,9.91e-05,2]
[348699095,1736725832411,-985.33232743,9.91e-05,2]
[348699096,1736725832428,-3234.59175643,9.91e-05,2]
[348699097,1736725832440,-3557.30530424,9.91e-05,2]
[348699098,1736725832459,-646.9888024,9.91e-05,2]
[348699099,1736725832541,-1663.89699298,9.91e-05,2]
[348699100,1736725832553,-4762.6,9.91e-05,2]
[348699101,1736725832567,-6976.16997303,9.91e-05,2]
[348699102,1736725832596,-1244.15535,9.91e-05,2]
[348699103,1736725832608,-3333.14169551,9.91e-05,2]
[348699104,1736725832617,-200.1811951,9.95e-05,2]
[348699105,1736725832626,-2963.86576259,9.98e-05,2]
[348699106,1736725832895,-16732.26657061,9.98e-05,2]
[348699107,1736725832907,-504.38927593,9.98e-05,2]
[348699108,1736725832918,-1209.496,9.98e-05,2]
[348699109,1736725832929,-644.7737185,9.98e-05,2]
[348699123,1736725838084,-20780.54390345,9.98e-05,2]
[348699124,1736725838095,-25123.0463099,9.98e-05,2]
[348699125,1736725838106,-544.99900001,9.98e-05,2]
[348699126,1736725838117,-3387.62317,9.98e-05,2]
[348699127,1736725838136,-59623.22279257,9.98e-05,2]
[348699128,1736725838146,-2000.0,9.99e-05,2]
[348699129,1736725838155,-2001.99,9.99e-05,2]
[348699130,1736725838163,-156.7735821,9.99e-05,2]
[348699131,1736725838173,-624.52,9.995e-05,2]
[348699132,1736725838182,-500.0,9.995e-05,2]
[348699133,1736725838191,-500.0,9.995e-05,2]
[348699134,1736725838200,-1159.85,9.995e-05,2]
[348699135,1736725838209,-500.0,9.995e-05,2]
[348699136,1736725838218,-849.12,9.995e-05,2]
[348699137,1736725838227,-500.0,9.995e-05,2]
[348699138,1736725838236,-500.0,9.995e-05,2]
[348699139,1736725838245,-1310.3,9.995e-05,2]
[348699140,1736725838255,-500.0,9.995e-05,2]
[348699141,1736725838264,-792.62,9.995e-05,2]
[348699142,1736725838273,-500.0,9.995e-05,2]
[348699143,1736725838283,-544.05,9.995e-05,2]
[348699144,1736725838292,-500.0,9.995e-05,2]
[348699145,1736725838302,-922.39,9.995e-05,2]